Cogmind - Beta 12 --- EXPLORER MODE // 2024.02.25 @ 15:23:17 Player: daffie Result: Destroyed by Y-45 Defender with Heavy Assault Rifle Performance ------------- Evolutions (1) 500 Regions Visited (3) 600 Robots Destroyed (45) 225 Value Destroyed (741) 741 Prototype IDs (3) 60 Alien Tech Used (0) 0 Bonus (11) 11 TOTAL SCORE: 2137 Bonus ------- High Alert Combat Kills 11 Cogmind --------- Core Integrity 0/400 Matter 135/300 Energy 280/280 System Corruption 1% Temperature Cool (9) Movement Rolling (95) Ox1 Location -9/Storage Parts ------- > --- POWER (2) -------- Cooled Ion Engine > --- PROPULSION (3) --- Wheel > --- UTILITY (3) ------ Targeting Computer Hardened Light Armor Plating > --- WEAPON (2) ------- (None) > --- INVENTORY (5) ---- Flight Unit Peak State ------------ > --- POWER ------------ Ion Engine > --- PROPULSION ------- Wheel Flight Unit Flight Unit > --- UTILITY ---------- Structural Scanner Targeting Computer > --- WEAPON ----------- Guided EMP Blaster > --- INVENTORY -------- Compact Wheel [Rating: 18] Favorites ----------- Power Ion Engine Engine Ion Engine Propulsion Flight Unit Wheel Wheel Hover Unit Improved Hover Unit Flight Unit Flight Unit Utility Targeting Computer Device Structural Scanner Storage Medium Storage Unit Processor Targeting Computer Protection Hardened Light Armor Plating Weapon Assault Rifle Energy Gun Improved Medium Laser Ballistic Gun Assault Rifle Ballistic Cannon Light Cannon Launcher Rocket Launcher Special Weapon Mining Laser Build | -11 -10 -9 -9 ------- Run | Jun Mat Mat Sto Slots Evolved 3 | . 1 2 . Power 1 | . . 1 . Propulsion 1 | . 1 . . Utility 1 | . . 1 . Weapon . | . . . . Parts Attached 38 | 10 9 1 18 Power 5 | 1 1 . 3 Engine 5 | 1 1 . 3 Core . | . . . . Reactor . | . . . . Propulsion 18 | 4 5 . 9 Treads . | . . . . Leg . | . . . . Wheel 12 | 4 2 . 6 Hover 3 | . . . 3 Flight 3 | . 3 . . Utility 6 | 2 2 . 2 Device 1 | . 1 . . Storage 1 | 1 . . . Processor 2 | 1 . . 1 Hackware . | . . . . Protection 2 | . 1 . 1 Artifact . | . . . . Weapon 9 | 3 1 1 4 Energy Gun 1 | . . . 1 Energy Cannon . | . . . . Ballistic Gun 3 | 2 . 1 . Ballistic Cannon 1 | . 1 . . Launcher 3 | . . . 3 Special Weapon 1 | 1 . . . Impact Weapon . | . . . . Slashing Weapon . | . . . . Piercing Weapon . | . . . . Special Melee Weapon . | . . . . Unidentified Prototypes 3 | . . . 3 Parts Lost 16 | . 3 1 12 Power 1 | . . . 1 Propulsion 10 | . 2 1 7 Utility 2 | . . . 2 Weapon 3 | . 1 . 2 Highest Loss Streak 5 | . 3 1 5 To Critical Strikes 1 | . 1 . . Average Slot Usage (%) 59 | . 78 62 44 Engine 7 | . 12 3 6 Wheel 8 | . 9 . 11 Hover 1 | . . . 2 Flight 10 | . 12 23 3 Device 2 | . . 10 1 Storage 2 | . 8 . . Processor 9 | . 12 10 8 Protection 1 | . 1 . 2 Ballistic Gun 4 | . 8 6 . Ballistic Cannon 4 | . 7 10 . Launcher 3 | . . . 7 Special Weapon 1 | . 3 . . Naked Turns 2 | . . . 2 Heaviest Build 20 | 18 20 9 20 Greatest Support 26 | 26 20 12 26 Greatest Overweight (x) 6 | . 6 1 2 Average Overweight (x) . | . . . . Largest Inventory Capacity 10 | 10 10 5 5 Average Capacity 6 | 5 8 5 5 Most Carried 3 | 2 3 3 3 Average Carried 1 | . 2 3 1 Final Capacity 10 | 10 5 5 5 Final Carried 3 | 2 3 3 1 Class Distribution -------------------- 100% | Hacker-Mutant Dominant Class ---------------- Hacker-Mutant | -10/Materials Hacker-Mutant | -9/Materials Hacker-Mutant | -9/Storage Resources | -11 -10 -9 -9 ----------- Run | Jun Mat Mat Sto Matter Collected 979 | 164 221 240 354 Remotely . | . . . . Salvage Created 1111 | 190 321 258 342 Parts 79 | 17 21 12 29 Haulers Intercepted 5 | . 1 1 3 Recyclers Shooed 2 | . 1 1 . Parts Field Recycled . | . . . . Retrieved Matter . | . . . . Parts Self-Destructed . | . . . . Prevented . | . . . . Kills | -11 -10 -9 -9 ------- Run | Jun Mat Mat Sto Combat Hostiles Destroyed 20 | . 5 7 8 Guns 4 | . 3 1 . Cannons 8 | . 2 6 . AOE 8 | . . . 8 Classes Destroyed 12 | 2 5 2 3 Worker 4 | . 1 . 3 Builder 2 | . 2 . . Tunneler 6 | 5 . . 1 Hauler 5 | . 1 1 3 Recycler 4 | 1 1 2 . Mechanic 1 | . . 1 . Operator 1 | . . . 1 Watcher 2 | . . . 2 Swarmer 8 | . 2 5 1 Grunt 7 | . 3 1 3 Duelist 2 | . . 1 1 Sentry 3 | . . . 3 Best Kill Streak 9 | 6 6 7 9 Combat Bots Only 7 | . 4 4 7 Max Kills in Single Turn 3 | 1 1 1 3 Gunslinging . | . . . . Exploded 2 | . . . 2 Melee . | . . . . Uniques/NPCs Destroyed . | . . . . Combat | -11 -10 -9 -9 -------- Run | Jun Mat Mat Sto Damage Taken 1365 | . 286 257 822 Core 470 | . 68 41 361 Absorbed by Shields . | . . . . Core Remaining (%) 86 | 100 72 . . Volleys Fired 106 | 17 32 33 24 Largest 2 | 2 2 2 1 Hottest 55 | 40 55 55 50 Shots Fired 148 | 34 42 48 24 Gun 71 | 34 22 15 . Cannon 53 | . 20 33 . Launcher 24 | . . . 24 Special . | . . . . Kinetic 124 | 34 42 48 . Thermal . | . . . . Explosive 22 | . . . 22 Electromagnetic 2 | . . . 2 Robot Hit Streak 29 | 20 29 22 26 Robot Miss Streak 2 | 1 1 2 1 Penetration Max . | . . . . Secondary Targets . | . . . . Shots Hit Robots 122 | 29 36 36 21 Core Hits 62 | 8 12 14 28 Critical Kills . | . . . . Critical Parts Destroyed . | . . . . Critical Strikes 3 | . 2 1 . Blast 3 | . 2 1 . Melee Attacks . | . . . . Impact . | . . . . Slashing . | . . . . Piercing . | . . . . Sneak Attacks . | . . . . Combat Hostiles . | . . . . Follow-up Attacks . | . . . . Damage Inflicted 2734 | 309 550 613 1262 Guns 669 | 309 255 105 . Cannons 803 | . 295 508 . Explosions 1252 | . . . 1252 Melee . | . . . . Ramming 10 | . . . 10 Kinetic 1472 | 309 550 613 . Thermal . | . . . . Explosive 1124 | . . . 1124 Electromagnetic 128 | . . . 128 Impact . | . . . . Slashing . | . . . . Piercing . | . . . . Highest Corruption 1 | . . . 1 Average Corruption 1 | . . . 1 Corruption Purged . | . . . . Corruption Blocked . | . . . . Effects 2 | . . . 2 Matter Fused 1 | . . . 1 Data Loss (minor) 1 | . . . 1 Overload Shots . | . . . . Overflow Damage 51 | . 11 . 40 Projectiles 11 | . 11 . . Explosions 40 | . . . 40 Melee . | . . . . Knockbacks 9 | . 4 5 . Impact . | . . . . Kinetic 9 | . 4 5 . Secondary . | . . . . Self-Inflicted Damage 126 | . . . 126 Shots 8 | . . . 8 Rammed 2 | . . . 2 Targets Rammed 2 | . . . 2 Kicked . | . . . . Crushed . | . . . . Highest Temperature 81 | . 28 3 81 Average Temperature 16 | . 12 3 22 Received Heat Transfer 498 | . 156 54 288 Siege Activations . | . . . . Robots Corrupted . | . . . . Combat Hostiles . | . . . . Parts Fried . | . . . . Impact Corruptions . | . . . . Robots Melted . | . . . . Combat Hostiles . | . . . . Parts Melted . | . . . . Heat Transferred . | . . . . Parts Sabotaged . | . . . . Parts Stolen . | . . . . Parts Stripped . | . . . . Power Chain Reactions . | . . . . Missiles Intercepted . | . . . . Alert | -11 -10 -9 -9 ------- Run | Jun Mat Mat Sto Peak Influence 545 | 30 146 266 545 Initial 80 | . 14 44 80 Average 167 | 17 87 169 276 Maximum Alert Level 2 | . . 1 2 Low Security (%) 70 | 100 100 57 44 Level 1 17 | . . 42 24 Level 2 12 | . . . 30 Level 3 . | . . . . Level 4 . | . . . . Level 5 . | . . . . High Security . | . . . . Max Security . | . . . . Squads Dispatched . | . . . . Investigation . | . . . . Extermination . | . . . . Reinforcement . | . . . . Assault . | . . . . Garrison . | . . . . Intercept . | . . . . Searches Triggered . | . . . . Construction Impeded . | . . . . Haulers Reinforced . | . . . . Active Scanning Responses . | . . . . Cargo Convoy Interrupts . | . . . . Stealth | -11 -10 -9 -9 --------- Run | Jun Mat Mat Sto Distress Signals . | . . . . Communications Jammed . | . . . . Distress Signals . | . . . . Times Spotted 38 | . 7 12 19 Peak Tracking Total 10 | . 4 7 10 Tactical Retreats 4 | . 1 . 3 Traps | -11 -10 -9 -9 ------- Run | Jun Mat Mat Sto Traps Triggered 2 | . . . 2 Indirectly 1 | . . . 1 Trap Hack Attempts . | . . . . Triggered . | . . . . Disarmed . | . . . . Reprogrammed . | . . . . Reused . | . . . . Traps Extracted . | . . . . Installed . | . . . . Triggered . | . . . . Machines | -11 -10 -9 -9 ---------- Run | Jun Mat Mat Sto Machines Disabled 3 | . . 1 2 Max in Single Turn 1 | . . 1 1 Machines Repaired . | . . . . Machines Sabotaged . | . . . . Overloaded Fab Kills . | . . . . Hacking | -11 -10 -9 -9 --------- Run | Jun Mat Mat Sto Machines Accessed 5 | . . 1 4 Terminals 5 | . . 1 4 Fabricators . | . . . . Repair Stations . | . . . . Recycling Units . | . . . . Scanalyzers . | . . . . Garrison Access . | . . . . Total Hacks 10 | . . 3 7 Successful 6 | . . 2 4 Failed 4 | . . 1 3 Catastrophic . | . . . . Database Lockouts . | . . . . Manual 7 | . . 3 4 Terminals 10 | . . 3 7 Fabricators . | . . . . Repair Stations . | . . . . Recycling Units . | . . . . Scanalyzers . | . . . . Garrison Access . | . . . . Terminal Hacks 4 | . . 1 3 Open Door 3 | . . . 3 Branch Access Points 1 | . . 1 . Fabricator Hacks . | . . . . Repair Station Hacks . | . . . . Recycling Unit Hacks . | . . . . Scanalyzer . | . . . . Garrison Access Hacks . | . . . . Unauthorized Hacks 2 | . . 1 1 Terminals 2 | . . 1 1 Botnet 2 | . . 1 1 Fabricators . | . . . . Repair Stations . | . . . . Recycling Units . | . . . . Scanalyzers . | . . . . Garrison Access . | . . . . Data Cores Recovered 1 | . . . 1 Used . | . . . . Hacking Detections 1 | . . . 1 Full Trace Events . | . . . . Feedback Events . | . . . . Feedback Blocked . | . . . . Robot Schematics Acquired . | . . . . Robots Built . | . . . . Authchips . | . . . . Time . | . . . . Total Robot Build Rating . | . . . . Part Schematics Acquired . | . . . . Parts Built . | . . . . Authchips . | . . . . Time . | . . . . Total Part Build Rating . | . . . . Parts Repaired . | . . . . Time . | . . . . Parts Recycled . | . . . . Recycled Matter . | . . . . Retrieved Matter . | . . . . Retrieved Components . | . . . . Parts Scanalyzed . | . . . . Part Schematics Acquired . | . . . . Parts Damaged . | . . . . Bothacking | -11 -10 -9 -9 ------------ Run | Jun Mat Mat Sto Used RIF Installer . | . . . . Robots Hacked . | . . . . Non-combat . | . . . . Combat . | . . . . Robot Hacks Applied . | . . . . Relay Couplers Released . | . . . . Fabnet Peak Effective % . | . . . . Robots Rewired . | . . . . Allies Hacked . | . . . . Hacks Repelled . | . . . . Allies | -11 -10 -9 -9 -------- Run | Jun Mat Mat Sto Total Allies . | . . . . Largest Group . | . . . . Highest-Rated Group . | . . . . Highest-Rated Ally . | . . . . Total Orders . | . . . . Ally Attacks . | . . . . Total Damage . | . . . . Kills . | . . . . Allies Corrupted . | . . . . Allies Melted . | . . . . Intel | -11 -10 -9 -9 ------- Run | Jun Mat Mat Sto Robot Analysis Total . | . . . . Derelict Logs Recovered . | . . . . Drone Launches . | . . . . Drone Recoveries . | . . . . Exploration | -11 -10 -9 -9 ------------- Run | Jun Mat Mat Sto Turns Passed 770 | 114 215 133 308 Spaces Moved 648 | 63 158 133 294 Core 130 | 19 8 . 103 Treads . | . . . . Legs . | . . . . Wheels 226 | 44 59 . 123 Hover 17 | . . . 17 Flight 275 | . 91 133 51 Fastest Speed 34 | 50 34 34 37 Average Speed 64 | 72 75 36 70 Slowest Speed 350 | 100 350 117 190 Overloaded Moves . | . . . . Propulsion Burnouts . | . . . . Robots Hopped 3 | . . 3 . Cave-ins Triggered . | . . . . Exploration Rate (%) 27 | 3 26 19 62 Regions Visited 3 Branch Regions 1 Pre-discovered Areas . | . . . . Known Exits Taken 3 | 1 1 1 . Unknown Exits Taken . | . . . . Scrap Searched . | . . . . Spaces Dug . | . . . . Terrain Destroyed 143 | . . . 143 Melee . | . . . . Projectile . | . . . . AOE 143 | . . . 143 Terrain Rammed . | . . . . Walls Destroyed . | . . . . Machines Disabled . | . . . . Actions | -11 -10 -9 -9 --------- Run | Jun Mat Mat Sto Total 835 | 95 209 164 367 Wait 33 | 5 5 1 22 Move 639 | 62 157 126 294 Hop 3 | . . 3 . Pick Up 1 | . 1 . . Fast Attach 31 | 8 7 1 15 Attach 3 | . 1 . 2 Detach . | . . . . Swap 4 | 2 1 . 1 Drop 13 | 1 5 . 7 Fire 106 | 17 32 33 24 Melee . | . . . . Ram 2 | . . . 2 Kick . | . . . . Crush . | . . . . Escape Stasis . | . . . . Rewire . | . . . . Trap . | . . . . Miscellaneous . | . . . . Route ------- -11/Junkyard -10/Materials -9/Materials (discovered 3 exits: Min x2 / *Sto) -9/Storage (discovered 1 exit: *Mat) History --------- Turn | Location | Event 5 | -11/Junkyard | Identified exit to Materials 5 | -11/Junkyard | Discovered exit to Materials (range 15) 115 | -11/Junkyard | Entered Materials 115 | -10/Materials | Evolved 1 slot: Propulsion x1 230 | -10/Materials | Lost 3 parts (2n1w) 310 | -10/Materials | Identified exit to Materials 310 | -10/Materials | Discovered exit to Materials (range 16) 318 | -10/Materials | Build established: Hacker-Mutant 330 | -10/Materials | Entered another Materials area 330 | -9/Materials | Evolved 2 slots: Power x1, Utility x1 337 | -9/Materials | Identified exit to Mines 337 | -9/Materials | Identified exit to Storage 463 | -9/Materials | Entered Storage 556 | -9/Storage | Identified exit to Materials 556 | -9/Storage | Discovered exit to Materials (range 15) 577 | -9/Storage | Lost 5 parts (1p2n1u1w) 581 | -9/Storage | Core integrity fell below 50% 607 | -9/Storage | Core integrity fell below 20% 635 | -9/Storage | Destroyed 7 combat bots 639 | -9/Storage | Lost 3 parts (2n1u) 771 | -9/Storage | Destroyed by Y-45 Defender with Heavy Assault Rifle Last Messages --------------- T-07 Excavator destroyed. Y-45 Defender destroyed. Dropped Wheel. Acquired Imp. Hover Unit. Connecting with Door Terminal... >>Open(Door) Sealed Heavy Doors opened. The unstable cave ceiling collapses. Door Terminal disabled. The unstable cave ceiling collapses. Critical hit (Burn: +37). Rocket Launcher destroyed. Destroyed Rocket Launcher. Dropped Lgt. Ion Engine. The unstable cave ceiling collapses. Imp. Hover Unit destroyed. Wheel destroyed. The unstable cave ceiling collapses. Acquired Wheel. Imp. Hover Unit destroyed. Map ----- +----------------------------------------------------+ | | | | | | | | | | | | | | | | | ??????????????????????????????????? | | ??????????????????????????????????? | | ??????????????????????????????????? | | ??????????????????????????????????? | | ??????????????????????????????????? | | ??????????????????????????????????? | | ???????????##?????????????????????? | | ??####????# #?????????????????????? | | ??# ?? #?????????????????????? | | ??# ? #######???????????????? | | ??# """ ## ! !###?????????????? | | ??# = """ # !*! #?????????????? | | ??# * """ # ! ! ##????##??????? | | ??# # ! ! ##### ####???? | | ??# "T" ## #???? | | ??# # # #???? | | ?######+# Y ## # ##??? | | ## # *%!@%= #??? | | # ]### # # #??? | | ] ]] !| #??? | | ###! # # ##+# #??? | | ## ## # = ## # # # #??? | | #?#?#^^^# ########?#??? | | #???#^^^# """ """ #???????????? | | ##???# # """ """ #???????????? | | ##???# # """ """ #???????????? | | ##??# ##############???????????? | | #??# #????????????????????????? | | #??# #????????????????????????? | | #??# #????????????????????????? | | #??# #????????????????????????? | | ###??T +????????????????????????? | | #????# #????????????????????????? | | ##???? ?????????????????????????? | | #???? ##???????????????????????? | | #???? ##???????????????????????? | | #???? ##???????????????????????? | | #???? # ???????????????????????? | | %#??## / ???????????????????????? | | ##??## # ???????????????????????? | | ????## # ???????????????????????? | | ????## + ???????????????????????? | +----------------------------------------------------+ Best States ------------- Heat Dissipation 28 Energy Generation 19 Energy Capacity 305 Matter Stores 286 Matter Capacity 300 Sight Range 16 Terrain Scan Density 10 Armor Coverage 150 Resistance: KI 35 Resistance: TH 35 Resistance: EX 35 Resistance: EM 35 Resistance: I 35 Resistance: S 35 Resistance: P 35 Propulsion Shielding 33 Evasion (%) 63 Targeting Accuracy 5 Offensive Hacking 20 Item Schematics ----------------- None Robot Schematics ------------------ None Fabricated ------------ Nothing Alien Tech Used ----------------- None Achievements -------------- None Challenges ------------ None Game ------ Seed tunacasserole Manual? 1 Play Time 00:14:48 Cumulative 2750.3 hours Start 2024.02.25 @ 15:08:54 End 2024.02.25 @ 15:23:17 Sessions 1 Manual Loads 0 Difficulty Explorer Special Mode None Game No. 90 Rogue 0 Adventurer 0 Explorer 90 Win Type - Total 6 Types 3/0/1/2/0/0/0/0/0 Lore% 65 Gallery% 89 Achievement% 100 Wizard Run 0 Options --------- ASCII 0 Keyboard 0 Movement Mouse Keybinds 0 Fullscreen 0 Font 28/Smallcaps Map View 76x50 Tactical HUD 0 Map Filters NONE Filters NONE Steam 1 RUN: bd4f99db-de23-4675-8ac4-884f3bcd9e6c